bitfinex/quotes_SOLUSD_20240607
["timestamp","ask_amount","ask_price","bid_price","bid_amount"]
[1717759729340,9.4705,171.26,171.19,52.31]
[1717759729555,9.4705,171.26,171.2,7.31]
[1717759729762,9.4705,171.26,171.21,45.0]
[1717759730337,2.1603,171.27,171.21,45.0]
[1717759730537,9.4703,171.27,171.21,45.0]
[1717759730951,2.1604,171.26,171.21,45.0]
[1717759731153,2.1601,171.29,171.22,7.31]
[1717759731358,9.47,171.3,171.23,52.31]
[1717759731657,9.47,171.3,171.24,52.31]
[1717759731832,9.47,171.3,171.24,7.31]
[1717759732449,2.16,171.29,171.24,7.31]
[1717759736071,9.4699,171.3,171.24,7.31]
[1717759737374,9.4699,171.3,171.23,7.31]
[1717759737563,9.4699,171.3,171.24,45.0]
[1717759740767,9.4699,171.3,171.24,52.31]
[1717759740949,7.31,171.3,171.24,52.31]
[1717759741150,7.31,171.31,171.24,52.31]
[1717759741351,7.31,171.31,171.25,7.31]
[1717759741571,9.4698,171.31,171.26,45.0]
[1717759742163,19.4354,171.34,171.26,45.0]
[1717759742164,2.1597,171.32,171.26,45.0]
[1717759742371,9.4696,171.33,171.27,7.31]
[1717759742552,2.1596,171.33,171.27,7.31]
[1717759745373,9.4695,171.34,171.28,45.0]
[1717759745868,4.3186,171.35,171.28,45.0]
[1717759745869,2.1593,171.35,171.28,45.0]
[1717759746179,9.4693,171.35,171.29,7.31]
[1717759747485,2.1594,171.34,171.29,7.31]
[1717759748011,2.1594,171.34,171.28,52.31]
[1717759748676,20.0,171.34,171.2,6.5984]
[1717759748877,7.31,171.26,171.21,26.5984]
[1717759749097,7.31,171.26,171.21,6.5984]
[1717759751313,2.1602,171.28,171.21,6.5984]
[1717759751512,7.31,171.27,171.21,6.5984]
[1717759752022,7.31,171.27,171.22,45.0]
[1717759754742,1.37243186,171.27,171.22,45.0]
[1717759755432,1.37243186,171.27,171.21,6.5984]
[1717759757332,1.37243186,171.27,171.19,15.4107]
[1717759757508,1.37243186,171.27,171.2,72.31]
[1717759758822,1.37243186,171.27,171.2,65.0]
[1717759759131,1.37243186,171.27,171.2,72.31]
[1717759760214,2.1602,171.28,171.2,27.31]
[1717759760415,7.31,171.27,171.2,27.31]
[1717759761317,7.31,171.27,171.2,20.0]
[1717759766526,7.31,171.27,171.19,7.31]
[1717759766728,7.31,171.27,171.2,20.0]
[1717759767219,7.31,171.27,171.18,20.0]
[1717759767420,7.31,171.27,171.19,52.31]
[1717759767617,9.4703,171.27,171.2,20.0]
[1717759767828,7.31,171.26,171.2,20.0]
[1717759771245,7.31,171.27,171.2,27.31]
[1717759771828,7.31,171.26,171.2,20.0]
[1717759772547,7.31,171.26,171.19,52.31]
[1717759780542,2.1603,171.27,171.19,52.31]
[1717759780742,2.1603,171.27,171.19,45.0]
[1717759780941,9.4703,171.27,171.2,7.31]
[1717759783047,9.4703,171.27,171.18,45.0]
[1717759783048,7.31,171.24,171.18,45.0]
[1717759783427,7.31,171.24,171.17,52.31]
[1717759783630,7.31,171.24,171.18,20.0]
[1717759783946,11.1525,171.24,171.19,45.0]
[1717759784150,11.1525,171.24,171.18,7.31]
[1717759784151,3.8425,171.24,171.18,7.31]
[1717759784334,7.31,171.23,171.17,52.31]
[1717759784534,11.1525,171.24,171.17,52.31]
[1717759784935,3.8425,171.24,171.17,52.31]
[1717759785132,11.1525,171.24,171.17,45.0]
[1717759785638,11.1525,171.24,171.17,52.31]
[1717759785938,9.4708,171.23,171.17,45.0]
[1717759786251,6.0032,171.24,171.16,7.31]
[1717759788050,2.1608,171.23,171.16,7.31]
[1717759797639,9.4708,171.23,171.16,7.31]
[1717759799563,2.1608,171.23,171.16,7.31]
[1717759799971,9.4708,171.23,171.16,7.31]
[1717759800664,2.1608,171.23,171.16,7.31]
[1717759801039,2.1606,171.25,171.19,7.31]
[1717759801238,2.1606,171.25,171.17,45.0]
[1717759801239,2.1606,171.25,171.2,7.31]
[1717759801847,7.31,171.26,171.2,7.31]
[1717759802058,9.91570871,171.28,171.2,7.31]
[1717759802241,2.1604,171.26,171.21,7.31]
[1717759802642,2.1604,171.26,171.17,80.04]
[1717759802643,2.1604,171.26,171.2,7.31]
[1717759804163,9.4704,171.26,171.2,7.31]
[1717759805069,7.31,171.26,171.2,7.31]
[1717759806046,9.4704,171.27,171.2,7.31]
[1717759806246,2.1604,171.26,171.2,7.31]
[1717759806447,2.1604,171.26,171.21,7.31]
[1717759807452,2.1604,171.26,171.2,7.31]
[1717759808746,2.1605,171.25,171.17,80.04]
[1717759808945,9.4705,171.26,171.19,7.31]
[1717759810974,2.1606,171.25,171.19,7.31]
[1717759811277,9.4707,171.24,171.17,45.0]
[1717759811457,7.31,171.23,171.17,45.0]
[1717759812359,7.31,171.23,171.17,52.31]
[1717759813674,7.31,171.23,171.17,45.0]
[1717759813856,2.1608,171.23,171.16,7.31]
[1717759814059,7.31,171.22,171.13,35.05]
[1717759814267,7.31,171.22,171.16,7.31]
[1717759815574,9.4708,171.23,171.16,7.31]
[1717759815774,9.4708,171.23,171.14,65.0]
[1717759815965,7.31,171.23,171.16,7.31]
[1717759816779,9.4708,171.23,171.16,7.31]
[1717759817161,7.31,171.23,171.16,7.31]
[1717759817362,9.4708,171.23,171.16,7.31]
[1717759817665,2.1607,171.24,171.16,7.31]
[1717759818576,7.31,171.23,171.17,7.31]
[1717759822493,2.1607,171.24,171.17,7.31]
[1717759822691,7.31,171.23,171.17,7.31]
[1717759823193,2.1606,171.25,171.17,7.31]
[1717759823492,7.31,171.24,171.17,7.31]
[1717759823671,7.31,171.24,171.18,7.31]
[1717759824798,9.4707,171.24,171.18,7.31]
[1717759834508,2.1607,171.24,171.18,7.31]
[1717759834803,9.4707,171.24,171.18,7.31]
[1717759836711,2.1607,171.24,171.18,7.31]
[1717759837415,2.1607,171.24,171.14,100.05]
[1717759837709,2.1608,171.23,171.18,7.31]
[1717759837912,2.1608,171.23,171.17,7.31]
[1717759839710,2.1608,171.23,171.14,100.05]
[1717759839921,2.1608,171.23,171.17,7.31]
[1717759841223,9.4708,171.23,171.17,7.31]
[1717759841394,7.31,171.22,171.14,100.05]
[1717759841591,7.31,171.22,171.16,7.31]
[1717759844015,7.31,171.23,171.16,7.31]
[1717759845120,2.1607,171.24,171.16,7.31]
[1717759848120,2.1605,171.26,171.18,7.31]
[1717759848421,7.31,171.25,171.18,7.31]
[1717759849228,9.4705,171.25,171.18,7.31]
[1717759850118,2.1607,171.24,171.15,51.4404]
[1717759850330,2.1607,171.24,171.17,7.31]
[1717759850499,9.4707,171.24,171.17,7.31]
[1717759850705,9.4707,171.24,171.18,45.0]
[1717759851397,7.31,171.24,171.18,45.0]
[1717759852410,2.1606,171.25,171.18,52.31]
[1717759852614,7.31,171.24,171.18,52.31]
[1717759852914,7.31,171.24,171.18,45.0]
[1717759853329,2.1606,171.25,171.18,45.0]
[1717759853628,7.31,171.24,171.18,45.0]
[1717759856503,7.31,171.24,171.17,52.31]
[1717759856705,7.31,171.23,171.17,45.0]
[1717759859937,2.1606,171.25,171.17,45.0]
[1717759860120,7.31,171.23,171.17,45.0]
[1717759861421,7.31,171.23,171.16,27.31]
[1717759863522,2.1606,171.25,171.16,27.31]
[1717759863723,7.31,171.23,171.16,27.31]
[1717759868330,2.1606,171.25,171.16,27.31]
[1717759868528,7.31,171.24,171.16,27.31]
[1717759871456,9.4707,171.24,171.16,27.31]
[1717759872147,7.31,171.24,171.16,27.31]
[1717759873144,2.1606,171.25,171.16,27.31]
[1717759873342,7.31,171.24,171.16,27.31]
[1717759874871,9.4705,171.25,171.17,7.31]
[1717759875844,9.4705,171.25,171.16,20.0]
[1717759876041,7.31,171.24,171.17,7.31]
[1717759876244,2.1605,171.25,171.17,7.31]
[1717759876546,7.31,171.23,171.16,27.31]
[1717759876850,9.4707,171.24,171.16,27.31]
[1717759881152,7.31,171.23,171.16,20.0]
[1717759884253,2.1607,171.24,171.16,20.0]
[1717759884459,7.31,171.23,171.16,20.0]
[1717759884952,2.1607,171.24,171.16,27.31]
[1717759885147,9.4707,171.24,171.16,27.31]
[1717759885458,2.1607,171.24,171.16,20.0]
[1717759885635,9.4707,171.24,171.16,27.31]
[1717759885834,9.4707,171.24,171.16,33.5559]
[1717759886456,2.1607,171.24,171.16,33.5559]
[1717759886651,2.1606,171.25,171.16,26.2459]
[1717759886952,2.1606,171.25,171.18,7.31]
[1717759887156,9.4706,171.25,171.18,6.81]
[1717759888641,9.4706,171.25,171.19,7.31]
[1717759889151,7.31,171.25,171.19,7.31]
[1717759889354,2.1607,171.24,171.19,13.3525]
[1717759889657,2.1607,171.24,171.19,6.0425]
[1717759890030,2.1607,171.24,171.18,7.31]
[1717759890244,2.1607,171.24,171.18,13.631]
[1717759891837,9.4707,171.24,171.18,6.321]
[1717759892153,2.1607,171.24,171.18,6.321]
[1717759892456,9.4707,171.24,171.18,13.631]
[1717759892655,9.4707,171.24,171.18,6.321]
[1717759893244,2.1607,171.24,171.18,6.321]
[1717759893545,9.4707,171.24,171.18,6.321]
[1717759900476,2.1606,171.25,171.18,6.321]
[1717759900862,7.31,171.24,171.18,6.321]
[1717759901062,9.4707,171.24,171.18,6.321]
[1717759902053,7.31,171.23,171.18,6.321]
[1717759902378,9.4708,171.23,171.18,6.321]
[1717759902573,2.1607,171.24,171.18,6.321]
[1717759904560,7.31,171.23,171.18,6.321]
[1717759906977,9.4708,171.23,171.18,6.321]
[1717759907973,7.31,171.23,171.18,6.321]
[1717759908668,7.31,171.23,171.16,13.8632]
[1717759909486,2.1607,171.24,171.17,7.31]
[1717759909781,9.4707,171.24,171.17,7.31]
[1717759910171,2.1606,171.25,171.19,7.31]
[1717759910367,2.1601,171.29,171.16,200.05]
[1717759910686,7.31,171.29,171.23,7.31]
[1717759911401,2.1599,171.3,171.23,7.31]
[1717759911696,9.47,171.29,171.23,7.31]
[1717759912491,7.31,171.27,171.19,22.5877]
[1717759912786,2.1602,171.28,171.21,7.31]
[1717759912963,7.31,171.28,171.21,7.31]
[1717759913168,7.31,171.28,171.22,7.31]
[1717759913370,7.31,171.28,171.21,7.31]
[1717759913972,9.4702,171.28,171.21,7.31]
[1717759917086,7.31,171.32,171.22,45.0]
[1717759917287,7.31,171.33,171.23,20.0]
[1717759917458,2.1594,171.34,171.24,51.1959]
[1717759917664,2.1602,171.28,171.24,45.0]
[1717759917876,2.1598,171.31,171.24,45.0]
[1717759918084,7.31,171.3,171.23,27.31]
[1717759918286,6.07340524,171.35,171.23,55.05]
[1717759918487,7.31,171.32,171.24,45.0]
[1717759918662,7.31,171.31,171.24,45.0]
[1717759918983,6.07340524,171.35,171.25,7.31]
[1717759919160,7.31,171.32,171.26,45.0]
[1717759919365,2.1594,171.34,171.26,45.0]
[1717759919578,7.31,171.32,171.26,45.0]
[1717759919992,2.1594,171.34,171.26,52.31]
[1717759920169,8.23270524,171.35,171.27,7.31]
[1717759920372,2.1593,171.35,171.28,7.31]
[1717759920575,7.31,171.34,171.28,7.31]
[1717759920768,7.31,171.34,171.26,45.0]
[1717759921097,2.1594,171.34,171.26,45.0]
[1717759921285,7.31,171.33,171.26,45.0]
[1717759921480,7.31,171.33,171.26,52.31]
[1717759921784,6.07441519,171.38,171.27,7.31]
[1717759921785,2.1592,171.36,171.27,7.31]
[1717759921980,7.31,171.33,171.27,7.31]
[1717759922178,7.31,171.33,171.26,45.0]
[1717759922385,7.31,171.33,171.27,7.31]
[1717759922691,2.1593,171.35,171.27,7.31]
[1717759922892,7.31,171.33,171.27,7.31]
[1717759923075,7.31,171.33,171.26,45.0]
[1717759923481,2.1593,171.35,171.26,45.0]
[1717759923684,2.1593,171.35,171.27,7.31]
[1717759924077,7.31,171.34,171.27,7.31]
[1717759924275,2.1592,171.36,171.27,7.31]
[1717759924687,2.1592,171.36,171.26,45.0]
[1717759924688,7.31,171.35,171.28,7.31]
[1717759925196,9.4693,171.35,171.28,7.31]
[1717759925388,7.31,171.35,171.28,7.31]
[1717759927284,2.1592,171.36,171.27,6.0554]
[1717759927485,9.4693,171.35,171.28,45.0]
[1717759927687,9.4693,171.35,171.28,52.31]
[1717759928081,9.4693,171.35,171.28,45.0]
[1717759928394,7.31,171.34,171.28,45.0]
[1717759928593,2.1593,171.35,171.28,45.0]
[1717759928802,9.4693,171.35,171.28,52.31]
[1717759929382,2.1593,171.35,171.28,52.31]
[1717759929586,9.4693,171.35,171.28,52.31]
[1717759929893,7.31,171.35,171.28,52.31]
[1717759930214,2.1591,171.37,171.29,7.31]
[1717759930379,7.31,171.35,171.29,7.31]
[1717759930573,2.1592,171.36,171.29,7.31]
[1717759930994,2.1591,171.37,171.3,7.31]
[1717759931279,2.1591,171.37,171.28,45.0]
[1717759931483,7.31,171.36,171.29,27.31]
[1717759931686,2.1591,171.37,171.29,27.31]
[1717759932091,7.31,171.36,171.29,27.31]
[1717759932304,2.1591,171.37,171.29,27.31]
[1717759933008,7.31,171.36,171.29,27.31]
[1717759933302,2.1591,171.37,171.29,27.31]
[1717759933500,7.31,171.36,171.29,20.0]
[1717759933806,7.31,171.36,171.29,27.31]
[1717759934008,7.31,171.36,171.29,20.0]
[1717759934190,9.4692,171.36,171.29,27.31]
[1717759934390,7.31,171.35,171.29,27.31]
[1717759936508,7.31,171.36,171.29,27.31]
[1717759937687,8.23341519,171.38,171.29,27.31]
[1717759937888,7.31,171.36,171.29,27.31]
[1717759938516,8.23341519,171.38,171.3,7.31]
[1717759938727,7.31,171.36,171.3,7.31]
[1717759939094,7.31,171.36,171.29,27.31]
[1717759939622,7.31,171.36,171.29,20.0]
[1717759939801,7.31,171.35,171.29,27.31]
[1717759941217,7.31,171.36,171.29,27.31]
[1717759941921,6.07441519,171.38,171.29,20.0]
[1717759942237,7.31,171.38,171.3,45.0]
[1717759943019,9.469,171.38,171.3,45.0]
[1717759943321,2.159,171.38,171.3,45.0]
[1717759943733,9.469,171.38,171.3,45.0]
[1717759944789,7.31,171.37,171.3,45.0]
[1717759944992,9.4691,171.37,171.31,7.31]
[1717759945213,2.1591,171.37,171.31,7.31]
[1717759945523,9.4689,171.38,171.32,7.31]
[1717759945995,9.4689,171.38,171.3,45.0]
[1717759948509,6.08277705,171.41,171.31,22.5774]
[1717759948820,7.31,171.41,171.35,7.31]
[1717759949007,9.4685,171.41,171.34,7.31]
[1717759949205,7.31,171.4,171.33,7.31]
[1717759949903,2.1585,171.41,171.34,7.31]
[1717759950105,2.1588,171.39,171.32,20.0]
[1717759950323,10.7923,171.42,171.33,52.31]
[1717759950324,9.4687,171.4,171.33,52.31]
[1717759950919,7.31,171.4,171.34,7.31]
[1717759951108,9.4686,171.41,171.34,7.31]
[1717759952131,6.08083096,171.43,171.33,45.0]
[1717759952321,7.31,171.43,171.36,7.31]
[1717759953226,7.31,171.43,171.33,80.05]
[1717759953415,7.31,171.44,171.37,7.31]
[1717759953722,8.239606,171.45,171.38,20.0]
[1717759953723,6.081506,171.45,171.38,20.0]
[1717759953941,2.158,171.46,171.38,20.0]
[1717759954106,9.468,171.46,171.39,7.31]
[1717759954311,2.158,171.46,171.39,7.31]
[1717759954624,9.468,171.46,171.38,20.0]
[1717759954799,9.468,171.46,171.39,7.31]
[1717759955421,2.158,171.46,171.39,7.31]
[1717759955629,9.468,171.46,171.39,7.31]
[1717759955928,9.468,171.46,171.38,20.0]
[1717759956102,9.468,171.46,171.39,7.31]
[1717759956424,2.158,171.46,171.39,7.31]
[1717759956631,9.468,171.46,171.39,7.31]
[1717759956929,9.4677,171.48,171.41,7.31]
[1717759957244,2.1577,171.48,171.41,7.31]
[1717759957610,9.4675,171.49,171.42,7.31]
[1717759959029,2.1575,171.49,171.42,7.31]
[1717759959232,9.4675,171.49,171.42,7.31]
[1717759959528,2.1575,171.49,171.43,7.31]
[1717759959711,9.4675,171.49,171.43,7.31]
[1717759960223,2.1575,171.49,171.43,7.31]
[1717759960426,9.4675,171.49,171.38,175.05]
[1717759960729,9.4675,171.49,171.43,7.31]
[1717759960931,9.4675,171.49,171.39,80.05]
[1717759961118,7.31,171.48,171.42,7.31]
[1717759961427,7.31,171.47,171.41,7.31]
[1717759961625,7.31,171.47,171.42,20.0]
[1717759962521,7.31,171.47,171.39,80.05]
[1717759962522,6.08117606,171.51,171.37,22.3967]
[1717759962723,7.31,171.43,171.38,26.5431]
[1717759963128,7.31,171.43,171.38,6.5431]
[1717759963820,2.1578,171.47,171.38,13.8531]
[1717759964016,7.31,171.45,171.38,6.5431]
[1717759964329,7.31,171.44,171.38,6.5431]
[1717759964532,7.31,171.43,171.38,6.5431]
[1717759965316,2.158,171.46,171.38,6.5431]
[1717759965515,4.3154,171.48,171.38,6.5431]
[1717759965516,7.31,171.44,171.38,6.5431]
[1717759966712,16.36721781,171.55,171.4,7.31]
[1717759966921,7.31,171.47,171.38,6.5431]
[1717759967235,9.4678,171.47,171.38,6.5431]
[1717759967415,7.31,171.46,171.39,7.31]
[1717759967618,7.31,171.46,171.4,7.31]
[1717759967829,7.31,171.47,171.4,7.31]
[1717759968411,7.31,171.47,171.41,7.31]
[1717759969044,7.31,171.47,171.38,6.5431]
[1717759969345,2.1578,171.47,171.4,7.31]
[1717759969717,9.4678,171.47,171.4,7.31]
[1717759969938,2.1578,171.47,171.4,7.31]
[1717759970121,9.4678,171.47,171.4,7.31]
[1717759973458,9.4678,171.47,171.41,7.31]
[1717759975140,2.1578,171.47,171.41,7.31]
[1717759975556,9.4678,171.47,171.41,7.31]
[1717759976342,2.1578,171.47,171.41,7.31]
[1717759977243,9.4677,171.48,171.41,7.31]
[1717759979420,6.08268919,171.5,171.41,7.31]
[1717759979627,9.4674,171.5,171.43,7.31]
[1717759980245,9.4674,171.5,171.39,80.05]
[1717759980423,2.1574,171.5,171.43,7.31]
[1717759981336,2.1574,171.5,171.39,80.05]
[1717759981535,2.1574,171.5,171.43,7.31]
[1717759982239,9.4674,171.5,171.44,7.31]
[1717759983526,6.4703,171.56,171.46,7.31]
[1717759983733,12.4688,171.57,171.48,7.31]
[1717759983734,9.467,171.54,171.48,7.31]
[1717759983931,2.157,171.54,171.48,7.31]
[1717759984151,9.467,171.54,171.48,7.31]
[1717759984349,7.31,171.54,171.48,7.31]
[1717759984730,9.4668,171.55,171.48,7.31]
[1717759985352,2.1569,171.54,171.48,7.31]
[1717759985555,2.1568,171.55,171.48,7.31]
[1717759986052,9.4668,171.55,171.48,7.31]
[1717759986348,14.6253,171.57,171.43,177.0886]
[1717759986349,2.1566,171.57,171.5,7.31]
[1717759986651,9.4666,171.56,171.5,7.31]
[1717759987024,2.1566,171.56,171.5,7.31]
[1717759987229,9.4666,171.56,171.5,7.31]
[1717759987424,6.36691515,171.61,171.53,7.31]
[1717759987658,7.31,171.56,171.49,21.5428]
[1717759987954,2.1561,171.6,171.5,71.5616]
[1717759988140,7.31,171.55,171.51,22.4035]
[1717759988345,2.1561,171.6,171.51,15.8419]
[1717759988540,7.31,171.55,171.52,6.5616]
[1717759988742,2.1561,171.6,171.52,6.5616]
[1717759988944,7.31,171.55,171.51,15.8419]
[1717759989347,2.1561,171.61,171.51,22.2656]
[1717759989552,2.156,171.61,171.52,20.0]
[1717759989745,7.31,171.56,171.53,22.9431]
[1717759990053,2.1559,171.62,171.54,6.4237]
[1717759990651,7.31,171.55,171.54,6.4237]
[1717759991353,7.31,171.57,171.53,16.5194]
[1717759991553,35.31881575,171.63,171.54,6.0644]
[1717759991853,6.07881575,171.63,171.53,22.6521]
[1717759992050,6.07881575,171.63,171.56,6.4162]
[1717759992051,7.31,171.59,171.56,6.4162]
[1717759992247,2.9594167,171.65,171.56,6.4162]
[1717759992561,7.31,171.59,171.56,6.4162]
[1717759993159,9.4658,171.63,171.56,6.4162]
[1717759993458,7.31,171.57,171.56,6.4162]
[1717759993838,7.31,171.57,171.52,55.05]
[1717759993839,2.1558,171.63,171.53,6.0847]
[1717759994040,29.24,171.63,171.54,71.0847]
[1717759994259,6.88312628,171.65,171.54,51.0847]
[1717759994557,7.31,171.59,171.56,6.0847]
[1717759994761,2.1557,171.64,171.56,6.0847]
[1717759994933,7.31,171.59,171.56,6.0847]
[1717759995329,31.3958,171.63,171.56,6.0847]
[1717759995956,29.24,171.63,171.56,6.0847]
[1717759996450,9.03872628,171.65,171.57,6.5499]
[1717759996655,6.88312628,171.65,171.58,6.5499]
[1717759996856,7.31,171.61,171.54,207.36]
[1717759997158,7.31,171.61,171.55,41.6862]
[1717759997334,0.8039167,171.65,171.56,45.0]
[1717759997539,7.31,171.61,171.58,15.47]
[1717759997755,0.8039167,171.65,171.58,15.47]
[1717759997962,7.31,171.61,171.58,15.47]
[1717759998257,7.31,171.62,171.58,15.47]
[1717759998460,7.31,171.62,171.59,6.6523]
[1717759998637,0.8039167,171.65,171.58,21.8255]
[1717759998930,7.31,171.61,171.58,21.8255]
[1717759999675,7.31,171.62,171.59,60.1732]
[1717759999969,7.31,171.62,171.6,6.5714]
[1717760000335,7.31,171.61,171.6,6.5714]
[1717760001540,7.31,171.61,171.57,16.3979]
[1717760001770,7.31,171.61,171.58,26.2476]
[1717760002836,7.31,171.61,171.59,6.03]
[1717760003241,0.8039167,171.65,171.59,6.03]
[1717760003453,7.31,171.62,171.59,6.03]
[1717760004165,7.31,171.62,171.59,6.1295]
[1717760004540,7.31,171.62,171.6,6.1295]
[1717760004737,0.8039167,171.65,171.58,191.563]
[1717760004942,7.31,171.63,171.59,51.1295]
[1717760005138,7.31,171.62,171.59,45.0]
[1717760005337,0.8039167,171.65,171.6,20.0]
[1717760005538,0.8039167,171.65,171.62,16.513]
[1717760005762,0.8039167,171.65,171.64,6.1295]
[1717760005952,8.1139167,171.65,171.64,26.1295]
[1717760007355,0.8039167,171.65,171.64,26.1295]
[1717760008562,0.8039167,171.65,171.64,41.4485]
[1717760009669,8.1139167,171.65,171.64,41.4485]
[1717760010263,8.1139167,171.65,171.64,26.1295]
[1717760012268,8.1139167,171.65,171.64,20.0]
[1717760012450,8.1139167,171.65,171.62,26.1393]
[1717760012652,8.1139167,171.65,171.63,6.2747]
[1717760012873,8.1139167,171.65,171.64,20.0]
[1717760013653,0.8039167,171.65,171.64,20.0]
[1717760013959,8.1139167,171.65,171.64,20.0]
[1717760015473,0.8039167,171.65,171.64,26.5388]
[1717760020659,0.8039167,171.65,171.64,71.5388]
[1717760021966,0.8039167,171.65,171.64,26.5388]
[1717760023879,0.8039167,171.65,171.64,146.5388]
[1717760024056,0.8039167,171.65,171.64,214.001]
[1717760024976,0.8039167,171.65,171.64,71.5388]
[1717760025161,0.8039167,171.65,171.64,20.0]
[1717760025362,0.8039167,171.65,171.63,26.4796]
[1717760027480,0.8039167,171.65,171.63,20.0]
[1717760027788,0.8039167,171.65,171.64,51.1166]
[1717760027958,0.8039167,171.65,171.64,71.1166]
[1717760029074,0.8039167,171.65,171.64,191.1166]
[1717760030269,0.8039167,171.65,171.64,241.4262]
[1717760030800,0.8039167,171.65,171.64,248.7362]
[1717760032892,0.8039167,171.65,171.64,33.4266]
[1717760033095,0.8039167,171.65,171.64,146.1166]
[1717760033276,0.8039167,171.65,171.64,153.4266]
[1717760033480,0.8039167,171.65,171.64,204.0222]
[1717760034277,0.8039167,171.65,171.64,249.0222]
[1717760034490,0.8039167,171.65,171.64,241.7122]
[1717760036817,0.8039167,171.65,171.64,249.0222]
[1717760041006,0.8039167,171.65,171.64,256.0760353]
[1717760044022,7.31,171.73,171.67,120.0]
[1717760044203,3.8425,171.76,171.68,20.0]
[1717760044405,7.31,171.72,171.68,20.0]
[1717760045013,7.31,171.72,171.66,27.31]
[1717760045421,7.31,171.72,171.67,165.0]
[1717760045597,7.31,171.73,171.68,20.0]
[1717760045797,3.8425,171.76,171.68,20.0]
[1717760045992,7.31,171.73,171.69,45.0]
[1717760046299,7.31,171.73,171.7,20.0]
[1717760046721,4.3073,171.8,171.67,120.0]
[1717760046722,9.92129481,171.81,171.69,135.2166]
[1717760046898,7.31,171.8,171.73,127.31]
[1717760047097,3.8425,171.87,171.75,120.0]
[1717760047296,7.31,171.8,171.76,65.0]
[1717760047504,7.31,171.8,171.76,20.0]
[1717760047903,3.8425,171.87,171.75,147.31]
[1717760048096,3.8425,171.87,171.76,45.0]
[1717760048297,3.8425,171.87,171.77,20.0]
[1717760048521,8.1139167,171.82,171.77,20.0]
[1717760049522,7.31,171.79,171.77,20.0]
[1717760049718,7.31,171.79,171.64,98.11553503]
[1717760049719,7.31,171.78,171.69,7.0538353]
[1717760049930,7.31,171.74,171.68,120.0]
[1717760050226,7.31,171.73,171.68,120.0]
[1717760050528,7.31,171.74,171.68,155.05]
[1717760051130,7.31,171.74,171.69,45.0]
[1717760051419,3.8425,171.8,171.7,120.0]
[1717760051628,7.31,171.76,171.71,45.0]
[1717760052025,7.31,171.76,171.72,20.0]
[1717760053129,7.31,171.78,171.73,45.0]